[Event "42nd GRE-ch Women 2019"]
[Site "Thessaloniki"]
[Date "2019.11.27"]
[Round "8.2"]
[White "Stefanidi, Maria-Anna"]
[Black "Serefidou, Despina"]
[Result "1/2-1/2"]
[ECO "C54"]
[WhiteElo "2012"]
[BlackElo "1899"]
[Annotator "NA RC"]
[PlyCount "165"]
[EventDate "2019.11.20"]
[EventType "tourn"]
[EventCountry "GRE"]
[SourceTitle "playchess.com"]
[Source "ChessBase"]
[SourceQuality "1"]
[TimeControl "40/5400+30:1800+30"]

1. e4 {[%emt 0:17:43]} e5 {[%emt 0:00:06]} 2. Nf3 {[%emt 0:00:22]} Nc6 {[%emt 0:00:00]} 3. Bc4 {[%emt 0:00:04]} Bc5 {[%emt 0:00:00]} 4. c3 {[%emt 0:00:07]} Nf6 {[%emt 0:00:00]} 5. d3 {[%emt 0:00:04]} d6 {[%emt 0:00:22]} 6. Nbd2 {[%emt 0:02:34]} a6 {[%emt 0:00:13]} 7. Bb3 {[%emt 0:04:28]} Ba7 {[%emt 0:00:46]} 8. h3 {[%emt 0:06:15]} O-O {[%emt 0:01:03]} 9. Nf1 {[%emt 0:00:07]} d5 {[%emt 0:10:30]} 10. Qe2 {[%emt 0:01:10] C54: Giuoco Piano: 4 c3 Nf6, main lines with 5 d4 and 5 d3} Qd6 {[%emt 0:23:02]} (10... Re8 11. Ng3 h6 12. Nh2 Be6 13. Ng4 Nh7 14. O-O Qd7 15. Qf3 Rad8 16. Nxh6+ gxh6 17. Nh5 Kh8 18. Bxh6 {½-½ (37) Li,R (2564)-Rambaldi,F (2574) Saint Louis 2017}) 11. g4 {[%emt 0:09:24]} Na5 $146 {[%emt 0:18:27]} ({Predecessor:} 11... Be6 12. Ng3 dxe4 13. dxe4 Bxb3 14. axb3 Rad8 15. Bg5 Qe6 16. b4 Rd7 17. Bxf6 Qxf6 {0-1 (78) Staniewicz,A (1046)-Kapicakova,L (1644) Kouty nad Desnou 2017}) 12. Bc2 {[%emt 0:10:28]} c5 {[%emt 0:12:29]} 13. Ng3 {[%emt 0:02:58]} d4 {[%emt 0:11:57]} 14. c4 {[%emt 0:15:49]} b5 {[%emt 0:00:13]} 15. b3 {[%emt 0:01:03]} Rd8 {[%emt 0:05:38]} 16. Bg5 {[%emt 0:06:57]} h6 {[%emt 0:07:26]} 17. Bd2 {[%emt 0:00:06]} Bb6 {[%emt 0:00:50]} 18. g5 {[%emt 0:00:47]} (18. Nh4 $11) 18... hxg5 {[%emt 0:00:11]} 19. Bxg5 {[%emt 0:01:50]} ({Better is} 19. Nxg5 $15 Ra7 20. Bd1) 19... Re8 {[%emt 0:04:31]} 20. Nh4 {[%emt 0:00:58]} g6 {[%emt 0:01:17]} 21. Rg1 {[%emt 0:04:34]} Kf8 {[%emt 0:00:33]} 22. Qf3 {[%emt 0:06:00]} (22. f4 $11) 22... Nh7 {[%emt 0:00:28]} 23. Bd2 {[%emt 0:01:39]} Qf6 {[%emt 0:00:38]} 24. Qxf6 {[%emt 0:02:22]} Nxf6 $11 {[%emt 0:00:02]} 25. Bh6+ {[%emt 0:00:09]} Ke7 {[%emt 0:00:25]} 26. Bg5 {[%emt 0:00:06]} Bd8 {[%emt 0:01:11]} 27. Nf3 {[%emt 0:01:20]} Kd6 {[%emt 0:00:25]} 28. h4 {[%emt 0:00:27]} Bg4 {[%emt 0:00:42]} 29. Nh2 {[%emt 0:00:46]} Be6 {[%emt 0:00:25]} 30. Kd2 {[%emt 0:00:49]} Ng4 {[%emt 0:00:29]} 31. Nxg4 {[%emt 0:01:04]} Bxg4 {[%emt 0:00:15]} 32. Bd1 {[%emt 0:00:48]} Bxd1 {[%emt 0:00:08]} 33. Raxd1 {[%emt 0:00:11]} f6 {[%emt 0:00:34]} 34. Bh6 {[%emt 0:00:51]} Rh8 {[%emt 0:00:10]} 35. Bg7 {[%emt 0:00:15]} Rxh4 {[%emt 0:01:18]} 36. Ne2 {[%emt 0:00:32]} g5 {[%emt 0:00:36]} 37. Ng3 {[%emt 0:00:17]} Ke6 {[%emt 0:00:32]} 38. Nf5 {[%emt 0:00:27]} Rf4 {[%emt 0:00:14]} 39. Ke2 {[%emt 0:00:36]} Kf7 {[%emt 0:00:43]} 40. Bh6 {[%emt 0:00:00]} Bc7 {[%emt 0:00:00]} 41. Rh1 {[%emt 0:02:03]} Rg8 {[%emt 0:29:47]} 42. Rdg1 {[%emt 0:05:11]} Bd8 {[%emt 0:01:20]} 43. f3 {[%emt 0:03:21]} Nc6 {[%emt 0:00:55]} 44. cxb5 {[%emt 0:00:50]} axb5 {[%emt 0:00:18]} 45. Rc1 {[%emt 0:00:06]} Ne7 {[%emt 0:00:30]} 46. Nd6+ {[%emt 0:00:37]} Kg6 {[%emt 0:00:31]} 47. Rxc5 {[%emt 0:02:07]} b4 {[%emt 0:00:43]} 48. Rb5 {[%emt 0:05:44]} Bc7 {[%emt 0:00:23]} 49. Nc4 {[%emt 0:00:22]} Ra8 {[%emt 0:00:31]} 50. Rb7 {[%emt 0:00:34]} Rxa2+ {[%emt 0:00:10]} 51. Nd2 {[%emt 0:00:05]} Rc2 {[%emt 0:00:08]} 52. Bf8 {[%emt 0:00:11]} Kf7 {[%emt 0:00:59]} 53. Bxe7 {[%emt 0:01:45]} Kxe7 {[%emt 0:00:05]} 54. Rh7+ {[%emt 0:00:28]} Kd8 {[%emt 0:00:24]} 55. Kd1 {[%emt 0:00:10]} Rc6 {[%emt 0:01:04]} 56. Rxb4 {[%emt 0:00:24]} Rh4 {[%emt 0:00:06]} 57. Rxh4 {[%emt 0:04:34]} gxh4 {[%emt 0:00:31]} 58. Rc4 {[%emt 0:00:51]} Ra6 {[%emt 0:00:39]} 59. f4 {[%emt 0:02:20]} Ra2 {[%emt 0:00:56]} 60. Nf3 {[%emt 0:01:23]} h3 {[%emt 0:00:41]} 61. Rc2 {[%emt 0:00:06]} Rxc2 {[%emt 0:00:13]} 62. Kxc2 {[%emt 0:00:07]} exf4 {[%emt 0:00:32]} 63. Kd2 {[%emt 0:00:27]} Ba5+ {[%emt 0:00:37]} 64. Ke2 {[%emt 0:00:07]} Kd7 {[%emt 0:00:24]} 65. Kf1 {[%emt 0:00:10]} Bc3 {[%emt 0:00:39]} 66. Kg1 {[%emt 0:00:07]} Kc6 {[%emt 0:00:15]} 67. Kh2 {[%emt 0:00:05]} Kb5 {[%emt 0:00:40]} 68. Kxh3 {[%emt 0:00:16]} Kb4 {[%emt 0:00:31]} 69. Kg4 {[%emt 0:00:11]} Kxb3 {[%emt 0:00:22]} 70. Kxf4 {[%emt 0:00:15]} Kc2 {[%emt 0:00:32]} 71. e5 {[%emt 0:00:06]} fxe5+ {[%emt 0:00:30]} 72. Nxe5 {[%emt 0:00:07]} Kb3 {[%emt 0:00:39]} 73. Nc6 {[%emt 0:00:32]} Ka4 {[%emt 0:00:31]} 74. Ke4 {[%emt 0:00:06]} Kb5 {[%emt 0:00:22]} 75. Nxd4+ {[%emt 0:00:10]} Kc5 {[%emt 0:00:20]} 76. Ne6+ {[%emt 0:00:28]} Kd6 {[%emt 0:00:11]} 77. Nf4 {[%emt 0:00:22]} Bg7 {[%emt 0:00:27]} 78. Nd5 {[%emt 0:00:14]} Bh8 {[%emt 0:00:16]} 79. Ne3 {[%emt 0:00:35]} Bc3 {[%emt 0:00:55]} 80. Nf5+ {[%emt 0:00:48]} Ke6 {[%emt 0:00:11]} 81. Nd4+ {[%emt 0:00:09]} Bxd4 {[%emt 0:00:32]} 82. Kxd4 {[%emt 0:00:06]} Kd6 {[%emt 0:00:08]} 83. Kc4 {[%emt 0:00:19]} 1/2-1/2

[Event "42nd GRE-ch Women 2019"]
[Site "Thessaloniki"]
[Date "2019.11.27"]
[Round "8.4"]
[White "Vozinaki, Anthi - Maria"]
[Black "Koutsidi, Amalia"]
[Result "0-1"]
[ECO "B90"]
[WhiteElo "1878"]
[BlackElo "1724"]
[Annotator "NA RC"]
[PlyCount "58"]
[EventDate "2019.11.20"]
[EventType "tourn"]
[EventCountry "GRE"]
[SourceTitle "playchess.com"]
[Source "ChessBase"]
[SourceQuality "1"]
[TimeControl "40/5400+30:1800+30"]

1. e4 {[%emt 0:00:00]} c5 {[%emt 0:00:05]} 2. Nf3 {[%emt 0:00:00]} d6 {[%emt 0:00:00]} 3. d4 {[%emt 0:00:00]} cxd4 {[%emt 0:00:00]} 4. Nxd4 {[%emt 0:00:00]} Nf6 {[%emt 0:00:00]} 5. Nc3 {[%emt 0:00:00]} a6 {[%emt 0:00:00]} 6. Be3 {[%emt 0:00:04]} e5 {[%emt 0:00:10]} 7. Nb3 {[%emt 0:00:05]} Be7 {[%emt 0:00:19]} 8. f3 {[%emt 0:00:28]} O-O {[%emt 0:07:07]} 9. Qd2 {[%emt 0:00:41]} Nbd7 {[%emt 0:00:53]} 10. O-O-O {[%emt 0:00:26]} b5 {[%emt 0:00:32]} 11. g4 {[%emt 0:13:35]} b4 {[%emt 0:01:05]} 12. Nd5 $14 {[%emt 0:04:44]} Nxd5 {[%emt 0:00:12]} 13. exd5 {[%emt 0:01:41]} a5 {[%emt 0:02:38]} 14. Kb1 {[%emt 0:04:18]} Qc7 {[%emt 0:08:55]} 15. g5 {[%emt 0:20:42]} Nb6 {[%emt 0:07:12]} 16. Qf2 {[%emt 0:02:47]} Nc4 {[%emt 0:02:10]} 17. Bxc4 {[%emt 0:01:39]} Qxc4 {[%emt 0:00:00]} 18. f4 {[%emt 0:08:06]} a4 {[%emt 0:06:22]} 19. Nc1 {[%emt 0:03:07]} b3 {[%emt 0:09:12]} 20. axb3 {[%emt 0:07:35]} axb3 {[%emt 0:00:17]} 21. Nxb3 {[%emt 0:00:21]} Bf5 {[%emt 0:02:02]} 22. fxe5 {[%emt 0:05:27]} Be4 {[%emt 0:12:26]} 23. Rd4 {[%emt 0:13:55]} Qxb3 {[%emt 0:00:45]} 24. Rxe4 {[%emt 0:00:36]} Qa2+ {[%emt 0:00:16]} 25. Kc1 {[%emt 0:00:06]} Qa1+ {[%emt 0:00:09]} 26. Kd2 {[%emt 0:00:04]} Qxh1 {[%emt 0:00:10]} 27. Qf4 {[%emt 0:01:12]} Bxg5 {[%emt 0:01:17]} 28. Qxg5 {[%emt 0:01:14]} Qxe4 {[%emt 0:00:16]} 29. exd6 {[%emt 0:00:12]} Qb4+ {[%emt 0:00:31]} 0-1

[Event "42nd GRE-ch Women 2019"]
[Site "Thessaloniki"]
[Date "2019.11.28"]
[Round "9.1"]
[White "Grapsa, Georgia"]
[Black "Hristodoulaki, Antonia"]
[Result "1/2-1/2"]
[ECO "B90"]
[WhiteElo "2026"]
[BlackElo "2054"]
[Annotator "NA RC"]
[PlyCount "20"]
[EventDate "2019.11.20"]
[EventType "tourn"]
[EventCountry "GRE"]
[SourceTitle "playchess.com"]
[Source "ChessBase"]
[SourceQuality "1"]
[TimeControl "40/5400+30:1800+30"]

{[%evp 11,20,29,52,38,32767,32767,32767,32767,16,0,0]} 1. e4 {[%emt 0:07:16]} c5 {[%emt 0:00:00]} 2. Nf3 {[%emt 0:00:06]} d6 {[%emt 0:00:00]} 3. d4 {[%emt 0:00:04]} cxd4 {[%emt 0:00:00]} 4. Nxd4 {[%emt 0:00:05]} Nf6 {[%emt 0:00:00]} 5. Nc3 {[%emt 0:00:03]} a6 {[%emt 0:00:00]} 6. Be3 {[%emt 0:00:05]} Ng4 {[%emt 0:00:03]} 7. Bg5 {[%emt 0:00:05]} Nf6 {[%emt 0:00:07]} 8. Be3 {[%emt 0:00:04]} Ng4 {[%emt 0:00:06]} 9. Bc1 {[%emt 0:00:03]} Nf6 {[%emt 0:00:07]} 10. Be3 {[%emt 0:00:09]} Ng4 $11 {[%emt 0:00:44]} 1/2-1/2

[Event "42nd GRE-ch Women 2019"]
[Site "Thessaloniki"]
[Date "2019.11.28"]
[Round "9.4"]
[White "Serefidou, Despina"]
[Black "Makka, Evanthia"]
[Result "1-0"]
[ECO "B01"]
[WhiteElo "1899"]
[BlackElo "2059"]
[Annotator "NA RC"]
[PlyCount "111"]
[EventDate "2019.11.20"]
[EventType "tourn"]
[EventCountry "GRE"]
[SourceTitle "playchess.com"]
[Source "ChessBase"]
[SourceQuality "1"]
[TimeControl "40/5400+30:1800+30"]

{[%evp 15,97,-16,32767,32767,32767,32767,32767,-10,-21,-12,-6,-20,0,32767,32767,32767,32767,51,54,32767,32,0,32767,32767,32767,32767,32767,32767,32767,32767,32767,32767,11,-36,7,0,64,33,30,4,18,9,19,22,32,20,36,38,58,45,81,29,197,93,104,86,102,54,61,40,56,51,170,163,168,186,196,216,32767,32767,273,32767,32767,32767,32767,32767,32767,32767,32767,205,210,258,316,377]} 1. e4 {[%emt 0:00:00]} d5 {[%emt 0:00:00]} 2. exd5 {[%emt 0:00:00]} Qxd5 {[%emt 0:00:00]} 3. Nc3 {[%emt 0:00:00]} Qd6 {[%emt 0:00:00]} 4. d4 {[%emt 0:02:15]} Nf6 {[%emt 0:00:34]} 5. Nf3 {[%emt 0:02:26]} g6 {[%emt 0:00:12]} 6. Bc4 {[%emt 0:23:04]} Bg7 {[%emt 0:08:18]} 7. Ne5 {[%emt 0:03:24] B01: Scandinavian Defence} (7. h3 O-O 8. O-O a6 9. a4 c5 10. d5 Nbd7 11. Qe2 Nb6 12. Rd1 Nxc4 13. Qxc4 Bf5 14. Be3 Rfc8 15. a5 b5 16. axb6 Qxb6 17. Na4 Qb5 18. Qxb5 {½-½ (18) Zhigalko,S (2641)-Rakhmanov,A (2653) Riadh 2017}) 7... O-O {[%emt 0:04:45]} 8. Be3 {[%emt 0:16:21]} ({White should try} 8. O-O $14) 8... c6 $146 {[%emt 0:11:36]} ({Predecessor:} 8... a6 9. Bb3 Nc6 10. Nc4 Qd8 11. f3 b5 12. Ne5 Na5 13. Qd2 Nxb3 14. axb3 {1-0 (47) Bossov,A (2195)-Grimberg,B (2307) Bayern 2015}) 9. a4 {[%emt 0:05:33]} Nbd7 {[%emt 0:04:40]} 10. f4 {[%emt 0:10:28]} Nb6 {[%emt 0:01:56]} 11. Bb3 {[%emt 0:01:34]} Nbd5 {[%emt 0:03:09]} 12. Nxd5 {[%emt 0:01:06]} Nxd5 {[%emt 0:00:00]} 13. Bd2 {[%emt 0:00:52]} Be6 {[%emt 0:05:09]} 14. O-O {[%emt 0:08:40]} Nc7 {[%emt 0:04:19]} 15. c3 {[%emt 0:02:23]} b6 {[%emt 0:03:29]} 16. Bxe6 {[%emt 0:05:14]} Nxe6 {[%emt 0:00:36]} 17. Be3 {[%emt 0:12:41]} Rac8 {[%emt 0:05:12]} 18. Qg4 {[%emt 0:01:51]} Nc7 {[%emt 0:07:23]} 19. Rae1 {[%emt 0:00:22]} e6 {[%emt 0:00:58]} 20. Qf3 {[%emt 0:00:36]} Nd5 {[%emt 0:01:28]} 21. Bf2 {[%emt 0:00:56]} Ne7 {[%emt 0:02:29]} 22. g4 {[%emt 0:00:16]} Qd5 {[%emt 0:05:04]} 23. Bh4 {[%emt 0:00:34]} Rfe8 {[%emt 0:11:07]} 24. Qh3 {[%emt 0:00:42]} f6 {[%emt 0:04:55]} 25. Nd3 {[%emt 0:00:19]} g5 {[%emt 0:00:35]} (25... Qc4 $11) 26. Bf2 {[%emt 0:00:41]} Ng6 {[%emt 0:00:35]} 27. Qe3 {[%emt 0:00:28]} Rcd8 {[%emt 0:00:32]} 28. Nb4 {[%emt 0:00:18]} gxf4 {[%emt 0:01:18]} 29. Nxd5 {[%emt 0:00:44]} fxe3 {[%emt 0:00:06]} 30. Nxe3 {[%emt 0:00:04]} Bh6 {[%emt 0:03:08]} 31. Bg3 {[%emt 0:00:14]} Bg5 {[%emt 0:00:36]} 32. Nc4 {[%emt 0:00:25]} Kg7 {[%emt 0:01:04]} 33. Re2 {[%emt 0:00:55]} (33. a5 $16) 33... c5 $2 {[%emt 0:02:12]} (33... Bh4 $14) 34. dxc5 {[%emt 0:00:01]} ({Better is} 34. Nd6 $18) 34... bxc5 {[%emt 0:00:15]} 35. Nd6 {[%emt 0:00:52]} Re7 {[%emt 0:07:26]} 36. Ne4 {[%emt 0:00:21]} c4 {[%emt 0:00:28]} 37. Nd6 {[%emt 0:00:40]} Kg8 {[%emt 0:01:15]} 38. Nxc4 {[%emt 0:00:32]} Rd3 {[%emt 0:00:46] [#]} (38... e5 $14) 39. Nd6 $1 {[%emt 0:01:01]} e5 {[%emt 0:01:06]} 40. Ne4 {[%emt 0:00:00]} Kg7 {[%emt 0:00:00]} 41. Nxg5 {[%emt 0:01:55]} fxg5 {[%emt 0:01:12]} 42. Rf5 {[%emt 0:00:49]} Kh6 {[%emt 0:04:49]} (42... h6 $142 43. Bxe5+ Nxe5) 43. Bxe5 {[%emt 0:15:12]} Rd5 {[%emt 0:12:46]} 44. Bf6 {[%emt 0:00:42]} Rxf5 {[%emt 0:00:23]} 45. Bxe7 {[%emt 0:00:53]} Rf4 {[%emt 0:00:21]} 46. a5 {[%emt 0:10:01]} Rxg4+ {[%emt 0:00:20]} 47. Kf2 {[%emt 0:01:28]} Nf4 {[%emt 0:03:17]} 48. Kf3 {[%emt 0:00:32]} Rg1 {[%emt 0:01:34]} 49. Rd2 $18 {[%emt 0:02:49]} Kh5 {[%emt 0:06:04]} 50. Bc5 {[%emt 0:00:34]} Rf1+ {[%emt 0:00:47]} 51. Ke4 {[%emt 0:00:25]} Kg4 {[%emt 0:01:03]} 52. Bxa7 {[%emt 0:00:36]} Re1+ {[%emt 0:00:18]} 53. Kd4 {[%emt 0:00:40]} Kf5 {[%emt 0:01:38]} 54. Bb8 {[%emt 0:00:29]} Re4+ {[%emt 0:02:01]} 55. Kc5 {[%emt 0:00:18]} Ne6+ {[%emt 0:01:05]} 56. Kb6 {[%emt 0:00:17]} 1-0

[Event "42nd GRE-ch Women 2019"]
[Site "Thessaloniki"]
[Date "2019.11.28"]
[Round "9.5"]
[White "Makka, Ioulia"]
[Black "Stefanidi, Maria-Anna"]
[Result "1/2-1/2"]
[ECO "B40"]
[WhiteElo "2048"]
[BlackElo "2012"]
[Annotator "NA RC"]
[PlyCount "84"]
[EventDate "2019.11.20"]
[EventType "tourn"]
[EventCountry "GRE"]
[SourceTitle "playchess.com"]
[Source "ChessBase"]
[SourceQuality "1"]
[TimeControl "40/5400+30:1800+30"]

{[%evp 19,82,7,-11,-52,-21,-72,-60,32767,32767,32767,32767,32767,32767,32767,32767,32767,32767,32767,-22,-70,-15,-55,-18,-82,-82,-91,-1,32767,32767,32767,32767,32767,32767,32767,32767,0,32767,43,59,51,38,44,68,54,250,-45,157,-588,-147,-139,-85,-151,-148,-298,-87,-79,0,0,0,0,0,0,0,0,0]} 1. e4 {[%emt 0:00:08]} c5 {[%emt 0:06:37]} 2. Nf3 {[%emt 0:00:07]} e6 {[%emt 0:00:03]} 3. Qe2 {[%emt 0:06:56]} Nc6 {[%emt 0:00:31]} 4. c3 {[%emt 0:00:11]} d5 {[%emt 0:00:13]} 5. exd5 {[%emt 0:03:02]} Qxd5 {[%emt 0:00:07]} 6. Na3 {[%emt 0:01:34] C00: French: Unusual White 2nd moves} Nf6 {[%emt 0:01:02]} 7. d3 $146 {[%emt 0:24:27]} ({Predecessor:} 7. g3 Qd8 8. Bg2 Be7 9. O-O O-O 10. Rd1 Bd7 11. Nc2 Qa5 12. d4 {½-½ (28) Zvjaginsev,V (2643)-Tregubov,P (2589) Moscow 2017}) 7... Bd6 {[%emt 0:08:10]} 8. Ng5 {[%emt 0:11:22]} b6 {[%emt 0:13:19]} 9. Ne4 {[%emt 0:05:06]} Bb8 {[%emt 0:08:55]} 10. Nxf6+ {[%emt 0:07:54]} (10. Bh6 $5 {[%cal Rh6g7]} Nxe4 11. dxe4 $14) 10... gxf6 {[%emt 0:00:30]} 11. Nc4 {[%emt 0:02:04]} Bb7 {[%emt 0:01:04]} 12. Bd2 {[%emt 0:02:28]} Bc7 {[%emt 0:02:01]} 13. Ne3 {[%emt 0:03:16]} Qd7 {[%emt 0:00:38]} 14. Ng4 {[%emt 0:00:52]} Qe7 {[%emt 0:01:19]} 15. f4 {[%emt 0:02:24]} O-O-O {[%emt 0:02:09]} 16. O-O-O {[%emt 0:01:51]} f5 {[%emt 0:00:46]} 17. Nf2 {[%emt 0:00:43]} h5 {[%emt 0:05:30]} 18. Nh3 {[%emt 0:00:53]} a6 {[%emt 0:11:38]} 19. Ng5 {[%emt 0:01:34]} b5 {[%emt 0:00:08]} 20. Rg1 {[%emt 0:03:00]} b4 {[%emt 0:00:27]} 21. Be3 {[%emt 0:00:49]} (21. Kb1 $11) 21... bxc3 {[%emt 0:04:07]} 22. bxc3 {[%emt 0:00:06] [#]} Qf6 {[%emt 0:01:04]} ({Black should try} 22... c4 $1 $17 {[%mdl 512]} 23. Kb1 (23. dxc4 f6) 23... e5) 23. Qb2 {[%emt 0:02:58]} e5 {[%emt 0:06:37]} 24. Bxc5 {[%emt 0:01:57]} exf4 {[%emt 0:00:39]} 25. Nf3 {[%emt 0:00:29]} Rhe8 {[%emt 0:04:00]} 26. d4 {[%emt 0:02:55]} Re3 {[%emt 0:00:37]} 27. Bd3 {[%emt 0:01:47]} Ne7 {[%emt 0:04:19]} 28. Qa3 {[%emt 0:01:16]} Nd5 {[%emt 0:05:49]} 29. Rd2 {[%emt 0:01:20]} Rg8 {[%emt 0:05:47]} 30. Rgd1 {[%emt 0:02:24]} Rxd3 {[%emt 0:01:41]} 31. Rxd3 {[%emt 0:00:05]} Ne3 $2 {[%emt 0:00:05] [#]} ({Black should try} 31... a5 $14) 32. Re1 $2 {[%emt 0:04:16] [#]} ({Only move:} 32. d5 $1 $18) 32... Rxg2 $2 {[%emt 0:00:15]} (32... Be4 $1 $17 {[%cal Re4d3] and life is bright.} 33. Rd2 Nc4) 33. Nd2 $4 {[%emt 0:02:29] [#]} (33. d5 $1 $18 {is the narrow road to win.}) 33... Be4 $2 {[%emt 0:00:58]} (33... Qh4 $1 $19 {[%mdl 512]} 34. Rd1 Qg4) 34. Nxe4 {[%emt 0:03:36]} fxe4 {[%emt 0:00:06]} 35. Rdxe3 {[%emt 0:00:29]} fxe3 {[%emt 0:00:09]} 36. Qa4 $2 {[%emt 0:00:36]} (36. d5 $17) 36... Kd8 $2 {[%emt 0:03:06]} ({Resist} 36... Rxh2 37. Qe8+ Kb7 38. Qxe4+ {[%mdl 64] Double Attack} Qc6 39. Qxe3 $17) (36... Qe6 $19 {is more deadly.} 37. Kb1 f5) 37. Qc4 {[%emt 0:00:26]} Qf5 {[%emt 0:06:30]} ({Don't play} 37... Qf2 38. Qd5+ {[%mdl 64] Double Attack} Kc8 39. Qa8+ {[%mdl 64] Double Attack} Bb8 40. Qc6+ Bc7 41. Qa8+ Bb8 42. Qc6+ Bc7 43. Qa8+ $11) (37... Bxh2 $17 38. Bb4 Rf2) 38. Qxa6 {[%emt 0:00:30]} e2 {[%emt 0:00:35]} (38... Qf2 $5 39. Qa8+ $8 {[%mdl 64] [#] Double Attack} Kd7 $1 {[%mdl 512]} 40. Qd5+ Kc8 $1 {[%mdl 512]} 41. Qa8+ Bb8 42. Qc6+ Bc7 43. Qa8+ Bb8 44. Qc6+ Bc7 45. Qa8+ $11) 39. Qa8+ {[%emt 0:00:32]} Kd7 {[%emt 0:00:07]} 40. Qa4+ {[%emt 0:00:00]} Kd8 {[%emt 0:00:00]} 41. Qa8+ {[%emt 0:08:54]} Kd7 $11 {[%emt 0:04:07]} 42. Qa4+ {[%emt 0:00:30]} Kd8 {[%emt 0:00:24]} 1/2-1/2